{"text_format":"3","workbook":"xlsx","n_sheets":2,"sheets":["ตัวติดตามการตอบรับคำเชิญ","สรุปการตอบรับคำเชิญ"],"not_rendered":{"charts":2,"defined_names":22},"read":"whole","date_system":"1900"}

{"sheet":"ตัวติดตามการตอบรับคำเชิญ","index":0,"n_rows":16,"n_cols":15,"rows_kept":16,"merged":[[0,3,0,4],[0,5,0,7]]}
[{"$nulls":5},"สรุปการตอบรับคำเชิญ"]
[null,"วันที่จัดงานแต่งงาน",null,"ตัวติดตามการเชิญเข้าร่วมงานแต่งงาน"]
[null,{"$f":"TODAY()+283","v":"2023-05-20"},null,"ชื่อแขก","ส่งแล้วหรือยัง","การตอบรับคำเชิญ","ปาร์ตี้","แขก","ความสัมพันธ์","ที่อยู่","เมือง","จังหวัด","รหัสไปรษณีย์","หมายเลขโทรศัพท์","อีเมลสำหรับติดต่อ"]
[null,"วันที่เหลือ",null,"ชื่อ 1","ใช่","ใช่",1,"ว่าที่คู่สมรส 1","พี่ชาย","ที่อยู่","เมือง","จังหวัด","รหัสไปรษณีย์","หมายเลขโทรศัพท์","someone@example.com"]
[null,{"$f":"_วันที่เหลือ","v":283},null,"ชื่อ 2","ใช่","ไม่ใช่",3,"ว่าที่คู่สมรส 1","เพื่อน","ที่อยู่","เมือง","จังหวัด","รหัสไปรษณีย์","โทรศัพท์","someone@example.com"]
[null,"ผู้เข้าร่วม",null,"ชื่อ 3","ใช่","ใช่",1,"อื่นๆ","เพื่อน","ที่อยู่","เมือง","จังหวัด","รหัสไปรษณีย์","โทรศัพท์","someone@example.com"]
[null,{"$f":"จำนวนผู้ที่จะมางานทั้งหมด","v":12},null,"ชื่อ 4","ใช่","ไม่ใช่",2,"ว่าที่คู่สมรส 2","เพื่อน","ที่อยู่","เมือง","จังหวัด","รหัสไปรษณีย์","โทรศัพท์","someone@example.com"]
[null,"ผู้ที่ไม่เข้าร่วม",null,"ชื่อ 5","ใช่","ใช่",2,"ว่าที่คู่สมรส 2","เพื่อน","ที่อยู่","เมือง","จังหวัด","รหัสไปรษณีย์","โทรศัพท์","someone@example.com"]
[null,{"$f":"จำนวนผู้ที่จะไม่มางานทั้งหมด","v":6},null,"ชื่อ 6","ใช่","ไม่แน่นอน",null,"อื่นๆ","เพื่อน","ที่อยู่","เมือง","จังหวัด","รหัสไปรษณีย์","โทรศัพท์","someone@example.com"]
[null,"ยังไม่ตอบรับ",null,"ชื่อ 7","ใช่","ใช่",2,"ว่าที่คู่สมรส 2","เพื่อน","ที่อยู่","เมือง","จังหวัด","รหัสไปรษณีย์","โทรศัพท์","someone@example.com"]
[null,{"$f":"การตอบรับคำเชิญที่ค้างอยู่","v":1},null,"ชื่อ 8","ใช่","ไม่ใช่",1,"อื่นๆ","เพื่อน","ที่อยู่","เมือง","จังหวัด","รหัสไปรษณีย์","โทรศัพท์","someone@example.com"]
[{"$nulls":3},"ชื่อ 9","ใช่","ใช่",4,"ว่าที่คู่สมรส 1","เพื่อน","ที่อยู่","เมือง","จังหวัด","รหัสไปรษณีย์","โทรศัพท์","someone@example.com"]
[{"$nulls":3},"ชื่อ 10","ใช่","ใช่",2,"ว่าที่คู่สมรส 1","เพื่อน","ที่อยู่","เมือง","จังหวัด","รหัสไปรษณีย์","โทรศัพท์","someone@example.com"]
[{"$nulls":3},"ชื่อ 11","ใช่",null,null,"ว่าที่คู่สมรส 2","พี่ชาย","ที่อยู่","เมือง","จังหวัด","รหัสไปรษณีย์","หมายเลขโทรศัพท์","someone@example.com"]
[{"$nulls":3},"ยอดรวม:",{"$f":"COUNTIF(ตัวติดตามการตอบรับคำเชิญ!$E$4:$E$14,\"ใช่\")","v":11},{"$f":"COUNTA(ตัวติดตามการตอบรับคำเชิญ!$F$4:$F$14)","v":10},{"$f":"SUBTOTAL(109,tblInvites[ปาร์ตี้])","v":18}]
[{"$nulls":3},"ยอดรวม:",{"$f":"COUNTIF(ตัวติดตามการตอบรับคำเชิญ!$E$4:$E$14,\"ใช่\")","v":11},{"$f":"COUNTA(ตัวติดตามการตอบรับคำเชิญ!$F$4:$F$14)","v":10},{"$f":"SUBTOTAL(109,tblInvites[ปาร์ตี้])","v":18}]

{"sheet":"สรุปการตอบรับคำเชิญ","index":1,"n_rows":11,"n_cols":15,"rows_kept":11,"merged":[[0,3,0,4],[0,5,0,8],[2,3,6,3],[2,4,6,4],[7,3,11,3],[7,4,11,4]]}
[{"$nulls":3},"ตัวติดตามการตอบรับคำเชิญ"]
[null,"วันที่จัดงานแต่งงาน",null,"สรุปการตอบรับคำเชิญ",{"$nulls":10},"หมายเหตุ"]
[null,{"$f":"วันที่จัดงานแต่งงาน","v":"2023-05-20"},null,"มา","แผนภูมิแท่งแบบกลุ่มที่แสดงประเภทของแขกที่ตอบรับคำเชิญว่า มา จะอยู่ในเซลล์นี้"]
[null,"วันที่เหลือ",{"$nulls":3},"อื่นๆ",{"$f":"IFERROR(SUMIFS(tblInvites[ปาร์ตี้],tblInvites[แขก],\"=อื่นๆ\",tblInvites[การตอบรับคำเชิญ],\"ใช่\"),0)","v":1},{"$f":"tblInvites[[#Totals],[ส่งแล้วหรือยัง]]","v":11}]
[null,{"$f":"_วันที่เหลือ","v":283},{"$nulls":3},"ว่าที่คู่สมรส 2",{"$f":"IFERROR(SUMIFS(tblInvites[ปาร์ตี้],tblInvites[แขก],\"=ว่าที่คู่สมรส 2\",tblInvites[การตอบรับคำเชิญ],\"ใช่\"),0)","v":4},{"$f":"tblInvites[[#Totals],[ส่งแล้วหรือยัง]]","v":11}]
[null,"ผู้เข้าร่วม",{"$nulls":3},"ว่าที่คู่สมรส 1",{"$f":"IFERROR(SUMIFS(tblInvites[ปาร์ตี้],tblInvites[แขก],\"=ว่าที่คู่สมรส 1\",tblInvites[การตอบรับคำเชิญ],\"ใช่\"),0)","v":7},{"$f":"tblInvites[[#Totals],[ส่งแล้วหรือยัง]]","v":11}]
[null,{"$f":"จำนวนผู้ที่จะมางานทั้งหมด","v":12}]
[null,"ผู้ที่ไม่เข้าร่วม",null,"ไม่มา","แผนภูมิแท่งแบบกลุ่มที่แสดงประเภทของแขกที่ตอบรับคำเชิญว่า ไม่มา จะอยู่ในเซลล์นี้"]
[null,{"$f":"จำนวนผู้ที่จะไม่มางานทั้งหมด","v":6},{"$nulls":3},"อื่นๆ",{"$f":"IFERROR(SUMIFS(tblInvites[ปาร์ตี้],tblInvites[แขก],\"=อื่นๆ\",tblInvites[การตอบรับคำเชิญ],\"ไม่ใช่\"),0)","v":1},{"$f":"tblInvites[[#Totals],[ส่งแล้วหรือยัง]]","v":11}]
[null,"ยังไม่ตอบรับ",{"$nulls":3},"ว่าที่คู่สมรส 2",{"$f":"IFERROR(SUMIFS(tblInvites[ปาร์ตี้],tblInvites[แขก],\"=ว่าที่คู่สมรส 2\",tblInvites[การตอบรับคำเชิญ],\"ไม่ใช่\"),0)","v":2},{"$f":"tblInvites[[#Totals],[ส่งแล้วหรือยัง]]","v":11}]
[null,{"$f":"การตอบรับคำเชิญที่ค้างอยู่","v":1},{"$nulls":3},"ว่าที่คู่สมรส 1",{"$f":"IFERROR(SUMIFS(tblInvites[ปาร์ตี้],tblInvites[แขก],\"=ว่าที่คู่สมรส 1\",tblInvites[การตอบรับคำเชิญ],\"ไม่ใช่\"),0)","v":3},{"$f":"tblInvites[[#Totals],[ส่งแล้วหรือยัง]]","v":11}]